[Event "Late-Titled-Tuesday-Blitz-September-26-2023"]
[Site "Chess.com"]
[Date "2023.09.26"]
[Round "3"]
[White "JG-17"]
[Black "nihalsarin"]
[Result "0-1"]
[WhiteElo "2503"]
[BlackElo "3085"]
[TimeControl "180+1"]
[EndTime "14:24:28 PDT"]
[Termination "nihalsarin won by resignation"]

1. e4 {[%clk 0:03:00.9]} 1... a6 {[%clk 0:03:00.9]} 2. d4 {[%clk 0:03:00.2]}
2... c6 {[%clk 0:03:01.4]} 3. Nc3 {[%clk 0:02:58.5]} 3... d5 {[%clk 0:03:01.8]}
4. e5 {[%clk 0:02:55.4]} 4... Bf5 {[%clk 0:03:01.7]} 5. Bd3 {[%clk 0:02:55]}
5... Bxd3 {[%clk 0:03:01.6]} 6. Qxd3 {[%clk 0:02:55.4]} 6... e6 {[%clk
0:03:02.5]} 7. f4 {[%clk 0:02:55.3]} 7... c5 {[%clk 0:03:03.1]} 8. Nf3 {[%clk
0:02:54.7]} 8... Nc6 {[%clk 0:03:03.3]} 9. Ne2 {[%clk 0:02:54.8]} 9... c4 {[%clk
0:03:03.3]} 10. Qd1 {[%clk 0:02:48.3]} 10... h5 {[%clk 0:03:03.8]} 11. Be3
{[%clk 0:02:46.2]} 11... Nh6 {[%clk 0:03:04.4]} 12. Bf2 {[%clk 0:02:31.2]} 12...
Nf5 {[%clk 0:03:04.8]} 13. Ng3 {[%clk 0:02:24.9]} 13... g6 {[%clk 0:03:04]} 14.
Nxf5 {[%clk 0:02:21.6]} 14... gxf5 {[%clk 0:03:04.9]} 15. Ng5 {[%clk 0:02:18.1]}
15... Be7 {[%clk 0:03:04.9]} 16. h4 {[%clk 0:02:11.8]} 16... Kf8 {[%clk
0:03:05.1]} 17. c3 {[%clk 0:02:08]} 17... Kg7 {[%clk 0:03:05.5]} 18. O-O {[%clk
0:02:06.4]} 18... Bxg5 {[%clk 0:03:06.2]} 19. fxg5 {[%clk 0:02:03.8]} 19... Kg6
{[%clk 0:03:07.1]} 20. a4 {[%clk 0:01:55.7]} 20... b5 {[%clk 0:03:07.5]} 21.
axb5 {[%clk 0:01:55.5]} 21... axb5 {[%clk 0:03:08.4]} 22. Rxa8 {[%clk
0:01:54.6]} 22... Qxa8 {[%clk 0:03:09.3]} 23. Qa1 {[%clk 0:01:54.8]} 23... b4
{[%clk 0:03:09.1]} 24. Be3 {[%clk 0:01:53.4]} 24... Qb7 {[%clk 0:03:07.7]} 25.
Bd2 {[%clk 0:01:41.3]} 25... Ra8 {[%clk 0:03:07.6]} 26. Qb1 {[%clk 0:01:41.1]}
26... bxc3 {[%clk 0:03:07.2]} 27. bxc3 {[%clk 0:01:32.4]} 27... Qxb1 {[%clk
0:03:07.4]} 28. Rxb1 {[%clk 0:01:32]} 28... Ra2 {[%clk 0:03:08.3]} 29. Be1
{[%clk 0:01:29]} 29... f4 {[%clk 0:03:08.9]} 30. Rb6 {[%clk 0:01:24.1]} 30...
Ne7 {[%clk 0:03:09.4]} 31. Rb8 {[%clk 0:01:17.6]} 31... Nf5 {[%clk 0:03:09.7]}
32. Rh8 {[%clk 0:01:13]} 32... Ne3 {[%clk 0:03:08.1]} 33. Rh6+ {[%clk
0:01:06.1]} 33... Kf5 {[%clk 0:03:08.4]} 34. Rxh5 {[%clk 0:00:57.4]} 34... Rxg2+
{[%clk 0:03:07.2]} 35. Kh1 {[%clk 0:00:57.4]} 35... Re2 {[%clk 0:03:08.1]} 36.
g6+ {[%clk 0:00:50]} 36... Kxg6 {[%clk 0:03:08.4]} 37. Rg5+ {[%clk 0:00:50.6]}
37... Kh6 {[%clk 0:03:08.7]} 38. Rg1 {[%clk 0:00:51.1]} 38... Kh7 {[%clk
0:03:08.7]} 39. h5 {[%clk 0:00:50]} 39... Kh6 {[%clk 0:03:09.2]} 40. Bh4 {[%clk
0:00:50.4]} 40... Kxh5 {[%clk 0:03:08.8]} 41. Bf6 {[%clk 0:00:50.5]} 41... f3
{[%clk 0:03:08.7]} 42. Rg5+ {[%clk 0:00:50.6]} 42... Kh6 {[%clk 0:03:09]} 43.
Rg8 {[%clk 0:00:46.2]} 43... f2 {[%clk 0:03:09.4]} 44. Rh8+ {[%clk 0:00:36.8]}
44... Kg6 {[%clk 0:03:09.6]} 45. Rg8+ {[%clk 0:00:36.1]} 45... Kf5 {[%clk
0:03:10.3]} 46. Rg5+ {[%clk 0:00:27.1]} 46... Ke4 {[%clk 0:03:10.1]} 0-1

[Event "Late-Titled-Tuesday-Blitz-September-26-2023"]
[Site "Chess.com"]
[Date "2023.09.26"]
[Round "3"]
[White "Sacbutt"]
[Black "JM2005GM"]
[Result "0-1"]
[WhiteElo "2272"]
[BlackElo "2490"]
[TimeControl "180+1"]
[EndTime "14:24:31 PDT"]
[Termination "JM2005GM won by checkmate"]

1. e4 {[%clk 0:03:00.9]} 1... e5 {[%clk 0:02:53.9]} 2. Nf3 {[%clk 0:03:00.7]}
2... Nc6 {[%clk 0:02:54.4]} 3. Bc4 {[%clk 0:03:00.9]} 3... Bc5 {[%clk
0:02:52.7]} 4. c3 {[%clk 0:03:00.7]} 4... Bb6 {[%clk 0:02:52.7]} 5. O-O {[%clk
0:02:59.5]} 5... Nf6 {[%clk 0:02:52.3]} 6. Re1 {[%clk 0:02:58.3]} 6... Qe7
{[%clk 0:02:52.8]} 7. h3 {[%clk 0:02:57.1]} 7... d6 {[%clk 0:02:52.5]} 8. d3
{[%clk 0:02:51.1]} 8... h6 {[%clk 0:02:52.7]} 9. Bb3 {[%clk 0:02:50.5]} 9... g5
{[%clk 0:02:52.6]} 10. Nh2 {[%clk 0:02:46]} 10... Rg8 {[%clk 0:02:40.6]} 11. Be3
{[%clk 0:02:44.4]} 11... g4 {[%clk 0:02:39.9]} 12. Bxb6 {[%clk 0:02:42.1]} 12...
axb6 {[%clk 0:02:37.7]} 13. hxg4 {[%clk 0:02:20.9]} 13... Nxg4 {[%clk
0:02:33.4]} 14. Nxg4 {[%clk 0:02:11.1]} 14... Bxg4 {[%clk 0:02:34.3]} 15. f3
{[%clk 0:02:06.6]} 15... Bh3 {[%clk 0:02:32.1]} 16. Re2 {[%clk 0:02:07.1]} 16...
Qh4 {[%clk 0:02:30.3]} 17. Nd2 {[%clk 0:01:58.1]} 17... O-O-O {[%clk 0:02:23.5]}
18. Bxf7 {[%clk 0:01:49.5]} 18... Rg7 {[%clk 0:02:19.6]} 19. Bd5 {[%clk
0:01:49]} 19... Ne7 {[%clk 0:02:17.8]} 20. Bb3 {[%clk 0:01:39.5]} 20... d5
{[%clk 0:02:12.8]} 21. Qe1 {[%clk 0:01:37.3]} 21... Qh5 {[%clk 0:02:08.8]} 22.
exd5 {[%clk 0:01:27.8]} 22... Bxg2 {[%clk 0:01:46.6]} 23. Rxg2 {[%clk
0:01:03.9]} 23... Rxg2+ {[%clk 0:01:47.5]} 24. Kxg2 {[%clk 0:01:04.2]} 24...
Rg8+ {[%clk 0:01:48]} 25. Kf2 {[%clk 0:01:04.6]} 25... Qh2+ {[%clk 0:01:46.4]}
26. Ke3 {[%clk 0:01:04.6]} 26... Nf5+ {[%clk 0:01:45]} 27. Ke4 {[%clk
0:01:04.8]} 27... Qf4# {[%clk 0:01:45.5]} 0-1

[Event "Late-Titled-Tuesday-Blitz-September-26-2023"]
[Site "Chess.com"]
[Date "2023.09.26"]
[Round "3"]
[White "leotobares"]
[Black "jjbolanos"]
[Result "1-0"]
[WhiteElo "2369"]
[BlackElo "2098"]
[TimeControl "180+1"]
[EndTime "14:24:40 PDT"]
[Termination "leotobares won by resignation"]

1. e4 {[%clk 0:03:00.9]} 1... c5 {[%clk 0:02:59]} 2. Nf3 {[%clk 0:03:00.1]} 2...
e6 {[%clk 0:02:58.4]} 3. c3 {[%clk 0:02:58.1]} 3... Nf6 {[%clk 0:02:56.2]} 4. e5
{[%clk 0:02:57.6]} 4... Nd5 {[%clk 0:02:56.8]} 5. d4 {[%clk 0:02:57.4]} 5...
cxd4 {[%clk 0:02:57.7]} 6. Qxd4 {[%clk 0:02:57.3]} 6... Nc6 {[%clk 0:02:56.7]}
7. Qe4 {[%clk 0:02:57.1]} 7... d6 {[%clk 0:02:55]} 8. Bb5 {[%clk 0:02:51.5]}
8... Bd7 {[%clk 0:02:52.8]} 9. a4 {[%clk 0:02:41.8]} 9... a6 {[%clk 0:02:46.9]}
10. Bd3 {[%clk 0:02:38.6]} 10... dxe5 {[%clk 0:02:36.7]} 11. Nxe5 {[%clk
0:02:37.8]} 11... Nxe5 {[%clk 0:02:36.5]} 12. Qxe5 {[%clk 0:02:37.6]} 12... Bc6
{[%clk 0:02:32.4]} 13. O-O {[%clk 0:02:34.6]} 13... Qd7 {[%clk 0:02:23.8]} 14.
a5 {[%clk 0:02:25.2]} 14... O-O-O {[%clk 0:02:07.1]} 15. Bc4 {[%clk 0:02:15.2]}
15... Bd6 {[%clk 0:02:06]} 16. Qh5 {[%clk 0:02:14.2]} 16... g6 {[%clk
0:01:56.9]} 17. Qh4 {[%clk 0:02:11.9]} 17... g5 {[%clk 0:01:47.7]} 18. Qd4
{[%clk 0:02:10.8]} 18... Nf4 {[%clk 0:01:34.6]} 19. Na3 {[%clk 0:01:51.8]} 19...
Bxg2 {[%clk 0:01:20.9]} 20. Bxf4 {[%clk 0:01:46.9]} 20... Bxf1 {[%clk
0:01:15.8]} 21. Bxd6 {[%clk 0:01:44.9]} 21... Bxc4 {[%clk 0:01:08.6]} 22. Nxc4
{[%clk 0:01:43.3]} 22... Qc6 {[%clk 0:01:01.1]} 23. Nb6+ {[%clk 0:01:41]} 1-0

[Event "Late-Titled-Tuesday-Blitz-September-26-2023"]
[Site "Chess.com"]
[Date "2023.09.26"]
[Round "3"]
[White "filipluczak05"]
[Black "jcibarra"]
[Result "0-1"]
[WhiteElo "2676"]
[BlackElo "2944"]
[TimeControl "180+1"]
[EndTime "14:24:41 PDT"]
[Termination "jcibarra won by resignation"]

1. d4 {[%clk 0:02:55.1]} 1... Nf6 {[%clk 0:02:59.8]} 2. Nc3 {[%clk 0:02:54.4]}
2... d5 {[%clk 0:02:59.9]} 3. Bf4 {[%clk 0:02:54.3]} 3... c5 {[%clk 0:02:59.7]}
4. e3 {[%clk 0:02:54.4]} 4... cxd4 {[%clk 0:02:55]} 5. exd4 {[%clk 0:02:54.2]}
5... Bg4 {[%clk 0:02:54.4]} 6. f3 {[%clk 0:02:53.9]} 6... Bd7 {[%clk 0:02:53.7]}
7. Bd3 {[%clk 0:02:45.8]} 7... Nc6 {[%clk 0:02:50]} 8. Nge2 {[%clk 0:02:46.1]}
8... Rc8 {[%clk 0:02:36.3]} 9. O-O {[%clk 0:02:41.6]} 9... e6 {[%clk 0:02:36.1]}
10. Nb5 {[%clk 0:02:34.6]} 10... Qb6 {[%clk 0:02:28.8]} 11. c3 {[%clk
0:02:24.5]} 11... e5 {[%clk 0:02:20.2]} 12. Be3 {[%clk 0:02:07.4]} 12... e4
{[%clk 0:02:18.8]} 13. fxe4 {[%clk 0:02:02.5]} 13... dxe4 {[%clk 0:02:18.8]} 14.
Bc4 {[%clk 0:02:02.3]} 14... Na5 {[%clk 0:02:18.1]} 15. Bxf7+ {[%clk 0:01:46.8]}
15... Kxf7 {[%clk 0:02:15.1]} 16. a4 {[%clk 0:01:47]} 16... a6 {[%clk
0:01:57.6]} 17. Na3 {[%clk 0:01:43.6]} 17... Bxa3 {[%clk 0:01:56.7]} 18. bxa3
{[%clk 0:01:39.5]} 18... Rhf8 {[%clk 0:01:50.3]} 19. Rb1 {[%clk 0:01:37.8]}
19... Qc6 {[%clk 0:01:30.6]} 20. d5 {[%clk 0:01:38]} 20... Qxa4 {[%clk
0:01:28.7]} 21. Rb4 {[%clk 0:01:16.9]} 21... Qxd1 {[%clk 0:01:25.1]} 22. Rxd1
{[%clk 0:01:06.7]} 22... b5 {[%clk 0:01:24.6]} 0-1

[Event "Late-Titled-Tuesday-Blitz-September-26-2023"]
[Site "Chess.com"]
[Date "2023.09.26"]
[Round "3"]
[White "Babbelbox"]
[Black "venturov"]
[Result "1-0"]
[WhiteElo "2660"]
[BlackElo "2464"]
[TimeControl "180+1"]
[EndTime "14:25:05 PDT"]
[Termination "Babbelbox won by resignation"]

1. e4 {[%clk 0:03:00.9]} 1... c5 {[%clk 0:02:57.3]} 2. Nf3 {[%clk 0:03:00.5]}
2... e6 {[%clk 0:02:57.2]} 3. d4 {[%clk 0:02:59.3]} 3... cxd4 {[%clk 0:02:58.1]}
4. Nxd4 {[%clk 0:02:59.2]} 4... Nc6 {[%clk 0:02:56.5]} 5. Nc3 {[%clk 0:02:58.9]}
5... Qc7 {[%clk 0:02:56.4]} 6. g4 {[%clk 0:02:58.4]} 6... a6 {[%clk 0:02:54.6]}
7. Bg2 {[%clk 0:02:52.2]} 7... Nxd4 {[%clk 0:02:52.4]} 8. Qxd4 {[%clk
0:02:53.1]} 8... Ne7 {[%clk 0:02:51.6]} 9. Be3 {[%clk 0:02:46.8]} 9... Nc6
{[%clk 0:02:48.1]} 10. Qd1 {[%clk 0:02:41.4]} 10... b5 {[%clk 0:02:47]} 11. O-O
{[%clk 0:02:26.7]} 11... Bb7 {[%clk 0:02:45]} 12. Re1 {[%clk 0:02:23.3]} 12...
Bd6 {[%clk 0:02:37.1]} 13. h3 {[%clk 0:02:20.8]} 13... Bf4 {[%clk 0:02:32]} 14.
Nd5 {[%clk 0:02:03.4]} 14... exd5 {[%clk 0:02:27.4]} 15. exd5 {[%clk 0:02:04.3]}
15... O-O {[%clk 0:01:49.7]} 16. dxc6 {[%clk 0:01:58.9]} 16... Bxc6 {[%clk
0:01:50.6]} 17. Qd3 {[%clk 0:01:35.4]} 17... Rac8 {[%clk 0:01:40.8]} 18. c3
{[%clk 0:01:33.7]} 18... Bxe3 {[%clk 0:01:18.8]} 19. Rxe3 {[%clk 0:01:31.3]}
19... Qb7 {[%clk 0:01:19.2]} 20. Bxc6 {[%clk 0:01:29.6]} 20... dxc6 {[%clk
0:01:20.1]} 21. Rd1 {[%clk 0:01:26.6]} 21... Qc7 {[%clk 0:01:18.8]} 22. Qd7
{[%clk 0:01:24.5]} 22... Qa5 {[%clk 0:01:13.7]} 23. Rde1 {[%clk 0:01:03.3]}
23... Qxa2 {[%clk 0:01:11.7]} 24. Qxc8 {[%clk 0:01:03.2]} 1-0

[Event "Late-Titled-Tuesday-Blitz-September-26-2023"]
[Site "Chess.com"]
[Date "2023.09.26"]
[Round "3"]
[White "chosenpr"]
[Black "Gentlejimmy7"]
[Result "1-0"]
[WhiteElo "2311"]
[BlackElo "2509"]
[TimeControl "180+1"]
[EndTime "14:25:26 PDT"]
[Termination "chosenpr won by resignation"]

1. e4 {[%clk 0:03:00.9]} 1... c6 {[%clk 0:03:00.3]} 2. d4 {[%clk 0:03:00.4]}
2... d5 {[%clk 0:03:01.2]} 3. exd5 {[%clk 0:03:01]} 3... cxd5 {[%clk 0:03:02.1]}
4. Bd3 {[%clk 0:03:00.8]} 4... Nc6 {[%clk 0:03:02.5]} 5. c3 {[%clk 0:03:01.3]}
5... Qc7 {[%clk 0:03:02.7]} 6. Ne2 {[%clk 0:02:59.9]} 6... Bg4 {[%clk
0:03:03.2]} 7. Nd2 {[%clk 0:02:49.8]} 7... e6 {[%clk 0:03:01.6]} 8. Nf1 {[%clk
0:02:49.1]} 8... Bd6 {[%clk 0:03:01.3]} 9. Be3 {[%clk 0:02:42.4]} 9... Nge7
{[%clk 0:02:56.8]} 10. Qd2 {[%clk 0:02:40.8]} 10... Bf5 {[%clk 0:02:54.8]} 11.
Nfg3 {[%clk 0:02:38.6]} 11... Bxd3 {[%clk 0:02:54.5]} 12. Qxd3 {[%clk
0:02:39.5]} 12... Rb8 {[%clk 0:02:53.9]} 13. a4 {[%clk 0:02:38.5]} 13... a6
{[%clk 0:02:53.4]} 14. O-O {[%clk 0:02:37.9]} 14... O-O {[%clk 0:02:52.2]} 15.
f4 {[%clk 0:02:37.6]} 15... b5 {[%clk 0:02:50.5]} 16. axb5 {[%clk 0:02:36.9]}
16... axb5 {[%clk 0:02:51.4]} 17. f5 {[%clk 0:02:37.1]} 17... exf5 {[%clk
0:02:40.2]} 18. Bg5 {[%clk 0:01:51.7]} 18... g6 {[%clk 0:02:30.7]} 19. Nf4
{[%clk 0:01:42.3]} 19... b4 {[%clk 0:02:25.3]} 20. Qf3 {[%clk 0:01:39.3]} 20...
bxc3 {[%clk 0:02:24.6]} 21. bxc3 {[%clk 0:01:38.4]} 21... Rb3 {[%clk 0:02:23.4]}
22. Rfd1 {[%clk 0:01:25.6]} 22... Qb6 {[%clk 0:02:10]} 23. h4 {[%clk 0:01:08.1]}
23... f6 {[%clk 0:02:00.5]} 24. Nxd5 {[%clk 0:01:01.4]} 24... Nxd5 {[%clk
0:01:48.7]} 25. Qxd5+ {[%clk 0:01:01.3]} 25... Kg7 {[%clk 0:01:49.3]} 26. Qxd6
{[%clk 0:00:52.8]} 26... fxg5 {[%clk 0:01:48.9]} 27. hxg5 {[%clk 0:00:43.2]}
27... Rf7 {[%clk 0:01:42.2]} 28. Ra8 {[%clk 0:00:38]} 28... Ne7 {[%clk
0:01:37.2]} 29. Qe5+ {[%clk 0:00:33.7]} 1-0

[Event "Late-Titled-Tuesday-Blitz-September-26-2023"]
[Site "Chess.com"]
[Date "2023.09.26"]
[Round "3"]
[White "TatjanaVasilevich"]
[Black "Dubs123"]
[Result "1-0"]
[WhiteElo "2552"]
[BlackElo "2354"]
[TimeControl "180+1"]
[EndTime "14:25:29 PDT"]
[Termination "TatjanaVasilevich won by resignation"]

1. e4 {[%clk 0:03:00.9]} 1... c5 {[%clk 0:02:59.7]} 2. Nf3 {[%clk 0:02:50.9]}
2... a6 {[%clk 0:02:59.3]} 3. d4 {[%clk 0:02:51.2]} 3... cxd4 {[%clk 0:02:59.8]}
4. Nxd4 {[%clk 0:02:51.9]} 4... Nf6 {[%clk 0:03:00]} 5. f3 {[%clk 0:02:49.8]}
5... e5 {[%clk 0:02:58]} 6. Nb3 {[%clk 0:02:49.1]} 6... Be7 {[%clk 0:02:18.3]}
7. c4 {[%clk 0:02:48.5]} 7... O-O {[%clk 0:02:11.7]} 8. Nc3 {[%clk 0:02:48]}
8... d6 {[%clk 0:02:10.1]} 9. Be3 {[%clk 0:02:48.2]} 9... Be6 {[%clk 0:02:07.5]}
10. g4 {[%clk 0:02:48.5]} 10... Nbd7 {[%clk 0:02:05.4]} 11. Nd5 {[%clk
0:02:48.9]} 11... Bxd5 {[%clk 0:02:02.3]} 12. cxd5 {[%clk 0:02:49.8]} 12... b6
{[%clk 0:01:58.8]} 13. h4 {[%clk 0:02:48.1]} 13... Nc5 {[%clk 0:01:58.8]} 14.
Nxc5 {[%clk 0:02:46.8]} 14... bxc5 {[%clk 0:01:59.7]} 15. b3 {[%clk 0:02:42.9]}
15... Nd7 {[%clk 0:01:44.7]} 16. Bf2 {[%clk 0:02:41]} 16... a5 {[%clk
0:01:40.2]} 17. a4 {[%clk 0:02:40.9]} 17... Nb6 {[%clk 0:01:30.9]} 18. Bb5
{[%clk 0:02:40.8]} 18... Nc8 {[%clk 0:01:30.8]} 19. Qd2 {[%clk 0:02:38.3]} 19...
Na7 {[%clk 0:01:30.3]} 20. Bc4 {[%clk 0:02:36.9]} 20... Rb8 {[%clk 0:01:29.7]}
21. O-O-O {[%clk 0:02:35.3]} 21... Rb4 {[%clk 0:01:23.9]} 22. Be1 {[%clk
0:02:33.5]} 22... Qc7 {[%clk 0:01:17.1]} 23. Qc2 {[%clk 0:02:32.4]} 23... Rb7
{[%clk 0:01:15]} 24. Ba6 {[%clk 0:02:31.1]} 24... Rbb8 {[%clk 0:01:11.9]} 25. g5
{[%clk 0:02:30.2]} 25... Qb6 {[%clk 0:01:10.4]} 26. Bc4 {[%clk 0:02:30]} 26...
f6 {[%clk 0:01:05.6]} 27. g6 {[%clk 0:02:29.5]} 27... h6 {[%clk 0:01:04.9]} 28.
h5 {[%clk 0:02:24.6]} 28... f5 {[%clk 0:00:57.7]} 29. exf5 {[%clk 0:02:24.2]}
29... Bg5+ {[%clk 0:00:54.9]} 30. Bd2 {[%clk 0:02:20.2]} 30... Bxd2+ {[%clk
0:00:54.6]} 31. Rxd2 {[%clk 0:02:21.1]} 31... Rf6 {[%clk 0:00:54.6]} 32. f4
{[%clk 0:02:21.6]} 32... Re8 {[%clk 0:00:52.2]} 33. Re2 {[%clk 0:02:20]} 33...
Qb4 {[%clk 0:00:47.9]} 34. Rhe1 {[%clk 0:02:19]} 34... Qa3+ {[%clk 0:00:47]} 35.
Kb1 {[%clk 0:02:16.5]} 35... Qb4 {[%clk 0:00:25.1]} 36. fxe5 {[%clk 0:02:15.3]}
36... dxe5 {[%clk 0:00:25.5]} 37. d6+ {[%clk 0:02:15.1]} 37... Kf8 {[%clk
0:00:12.6]} 38. d7 {[%clk 0:02:15.2]} 38... Rd8 {[%clk 0:00:05.9]} 39. Rxe5
{[%clk 0:02:14.3]} 1-0

[Event "Late-Titled-Tuesday-Blitz-September-26-2023"]
[Site "Chess.com"]
[Date "2023.09.26"]
[Round "3"]
[White "angryspacevoid"]
[Black "iturrizaga"]
[Result "0-1"]
[WhiteElo "2501"]
[BlackElo "2993"]
[TimeControl "180+1"]
[EndTime "14:25:37 PDT"]
[Termination "iturrizaga won by resignation"]

1. e4 {[%clk 0:02:55.1]} 1... c5 {[%clk 0:03:00]} 2. c3 {[%clk 0:02:54.9]} 2...
Nf6 {[%clk 0:02:59.8]} 3. e5 {[%clk 0:02:55.1]} 3... Nd5 {[%clk 0:03:00.6]} 4.
d4 {[%clk 0:02:55.6]} 4... cxd4 {[%clk 0:03:01.2]} 5. Nf3 {[%clk 0:02:55.3]}
5... Nc6 {[%clk 0:03:01.4]} 6. Bc4 {[%clk 0:02:56]} 6... Nb6 {[%clk 0:03:02]} 7.
Bb3 {[%clk 0:02:56.7]} 7... d5 {[%clk 0:03:02.6]} 8. exd6 {[%clk 0:02:56.9]}
8... Qxd6 {[%clk 0:03:03.3]} 9. O-O {[%clk 0:02:57.5]} 9... Be6 {[%clk 0:03:04]}
10. Na3 {[%clk 0:02:57.6]} 10... Bxb3 {[%clk 0:02:59.1]} 11. Qxb3 {[%clk
0:02:57.6]} 11... e6 {[%clk 0:02:59.1]} 12. Nb5 {[%clk 0:02:56.9]} 12... Qd7
{[%clk 0:02:59.7]} 13. Bf4 {[%clk 0:02:55.7]} 13... Nd5 {[%clk 0:02:59.3]} 14.
Bg3 {[%clk 0:02:56.2]} 14... Be7 {[%clk 0:02:51.1]} 15. c4 {[%clk 0:02:37.5]}
15... Nb6 {[%clk 0:02:49.9]} 16. Nc7+ {[%clk 0:02:35]} 16... Kf8 {[%clk
0:02:49.9]} 17. Nxa8 {[%clk 0:02:34.6]} 17... Nxa8 {[%clk 0:02:50.8]} 18. Rad1
{[%clk 0:02:25]} 18... f6 {[%clk 0:02:48.1]} 19. Nd2 {[%clk 0:02:13.6]} 19... h5
{[%clk 0:02:44]} 20. f4 {[%clk 0:02:08.9]} 20... h4 {[%clk 0:02:43.6]} 21. Bf2
{[%clk 0:02:09.1]} 21... h3 {[%clk 0:02:43.9]} 22. g3 {[%clk 0:01:55.2]} 22...
Kf7 {[%clk 0:02:44]} 23. Rfe1 {[%clk 0:01:44.4]} 23... Rd8 {[%clk 0:02:38.8]}
24. c5 {[%clk 0:01:22.2]} 24... Nc7 {[%clk 0:02:37.3]} 25. f5 {[%clk 0:01:12.8]}
25... Bxc5 {[%clk 0:02:28.5]} 26. fxe6+ {[%clk 0:01:06.4]} 26... Nxe6 {[%clk
0:02:29.4]} 27. Ne4 {[%clk 0:00:57.6]} 27... Bb6 {[%clk 0:02:28.8]} 28. g4
{[%clk 0:00:41.9]} 28... Ne5 {[%clk 0:02:28.2]} 29. Ng5+ {[%clk 0:00:37.4]}
29... Ke7 {[%clk 0:02:02.8]} 30. Nxe6 {[%clk 0:00:18.3]} 30... Qxe6 {[%clk
0:01:49.5]} 31. Qb4+ {[%clk 0:00:07.5]} 31... Kf7 {[%clk 0:01:48.3]} 0-1

[Event "Late-Titled-Tuesday-Blitz-September-26-2023"]
[Site "Chess.com"]
[Date "2023.09.26"]
[Round "3"]
[White "Dontmesswithme_2"]
[Black "Alphafischer2019"]
[Result "1-0"]
[WhiteElo "2411"]
[BlackElo "2577"]
[TimeControl "180+1"]
[EndTime "14:25:41 PDT"]
[Termination "Dontmesswithme_2 won by resignation"]

1. d4 {[%clk 0:03:00.9]} 1... Nf6 {[%clk 0:02:59.4]} 2. c4 {[%clk 0:03:00.7]}
2... b6 {[%clk 0:02:59.6]} 3. Nf3 {[%clk 0:02:58.6]} 3... Bb7 {[%clk 0:02:59.9]}
4. g3 {[%clk 0:02:58.6]} 4... g6 {[%clk 0:03:00.5]} 5. Bg2 {[%clk 0:02:58.1]}
5... Bg7 {[%clk 0:03:01.1]} 6. O-O {[%clk 0:02:57.8]} 6... O-O {[%clk
0:03:01.6]} 7. Re1 {[%clk 0:02:55.3]} 7... d6 {[%clk 0:02:50]} 8. Qc2 {[%clk
0:02:52.7]} 8... Nbd7 {[%clk 0:02:48.4]} 9. e4 {[%clk 0:02:48.9]} 9... e5 {[%clk
0:02:48.9]} 10. d5 {[%clk 0:02:40.8]} 10... a5 {[%clk 0:02:48.8]} 11. Nc3 {[%clk
0:02:38.9]} 11... h6 {[%clk 0:02:46.1]} 12. h3 {[%clk 0:02:33.9]} 12... Nh5
{[%clk 0:02:38.9]} 13. Be3 {[%clk 0:02:23]} 13... f5 {[%clk 0:02:24.3]} 14. exf5
{[%clk 0:01:52.8]} 14... gxf5 {[%clk 0:02:23.6]} 15. Ne2 {[%clk 0:01:47.9]}
15... Qf6 {[%clk 0:01:54.5]} 16. g4 {[%clk 0:01:39.2]} 16... fxg4 {[%clk
0:01:52.6]} 17. hxg4 {[%clk 0:01:40.1]} 17... Nf4 {[%clk 0:01:50.9]} 18. Nxf4
{[%clk 0:01:40.7]} 18... exf4 {[%clk 0:01:48.7]} 19. Bd4 {[%clk 0:01:41.6]}
19... Qf7 {[%clk 0:01:46.2]} 20. Re6 {[%clk 0:01:37.2]} 20... Rfb8 {[%clk
0:01:29.6]} 21. Rg6 {[%clk 0:01:29.9]} 21... Re8 {[%clk 0:00:59.7]} 22. Rxg7+
{[%clk 0:01:27.3]} 22... Qxg7 {[%clk 0:01:00.6]} 23. Bxg7 {[%clk 0:01:27.2]}
23... Kxg7 {[%clk 0:01:01.5]} 24. Nd4 {[%clk 0:01:24.8]} 24... Ne5 {[%clk
0:01:00.3]} 25. Ne6+ {[%clk 0:01:24.3]} 25... Rxe6 {[%clk 0:00:58.1]} 26. dxe6
{[%clk 0:01:24.1]} 26... f3 {[%clk 0:00:59]} 27. Bh3 {[%clk 0:01:21.6]} 27...
Re8 {[%clk 0:00:57.7]} 28. g5 {[%clk 0:01:19.7]} 28... hxg5 {[%clk 0:00:56.6]}
29. Qf5 {[%clk 0:01:20.1]} 29... Bc8 {[%clk 0:00:36.6]} 30. Qxg5+ {[%clk
0:01:19]} 30... Kh8 {[%clk 0:00:37]} 31. Qh5+ {[%clk 0:01:18.1]} 31... Kg7
{[%clk 0:00:34.3]} 32. Qxe8 {[%clk 0:01:19]} 32... Bd7 {[%clk 0:00:34.8]} 33.
exd7 {[%clk 0:01:18.5]} 1-0

[Event "Late-Titled-Tuesday-Blitz-September-26-2023"]
[Site "Chess.com"]
[Date "2023.09.26"]
[Round "3"]
[White "Lady_Nika"]
[Black "maurovargas01"]
[Result "1-0"]
[WhiteElo "2506"]
[BlackElo "1910"]
[TimeControl "180+1"]
[EndTime "14:25:45 PDT"]
[Termination "Lady_Nika won on time"]

1. e4 {[%clk 0:03:00.9]} 1... e5 {[%clk 0:02:51.8]} 2. Nf3 {[%clk 0:03:00.8]}
2... Nc6 {[%clk 0:02:47.8]} 3. Bb5 {[%clk 0:02:59.8]} 3... Nce7 {[%clk 0:02:32]}
4. Nxe5 {[%clk 0:02:56.2]} 4... c6 {[%clk 0:02:21.7]} 5. Be2 {[%clk 0:02:55.6]}
5... Nf6 {[%clk 0:01:57.4]} 6. Nc3 {[%clk 0:02:37.1]} 6... d6 {[%clk 0:01:33.1]}
7. Nf3 {[%clk 0:02:36]} 7... Ng6 {[%clk 0:01:32.5]} 8. d3 {[%clk 0:02:32.3]}
8... b5 {[%clk 0:01:29.3]} 9. a3 {[%clk 0:02:31.6]} 9... a5 {[%clk 0:01:28.6]}
10. O-O {[%clk 0:02:31.5]} 10... Bb7 {[%clk 0:01:26.8]} 11. Bg5 {[%clk
0:02:29.8]} 11... Be7 {[%clk 0:01:24.8]} 12. Re1 {[%clk 0:02:23.3]} 12... O-O
{[%clk 0:01:22.7]} 13. Bxf6 {[%clk 0:02:20.6]} 13... Bxf6 {[%clk 0:01:21.2]} 14.
Bf1 {[%clk 0:02:15.9]} 14... Re8 {[%clk 0:01:11.4]} 15. Rb1 {[%clk 0:02:14.7]}
15... Ne5 {[%clk 0:01:10.2]} 16. Nxe5 {[%clk 0:02:12.1]} 16... Bxe5 {[%clk
0:01:07.4]} 17. Ne2 {[%clk 0:02:10.5]} 17... Re6 {[%clk 0:01:01.3]} 18. g3
{[%clk 0:02:09.5]} 18... Rh6 {[%clk 0:01:00.3]} 19. Bg2 {[%clk 0:02:07.9]} 19...
d5 {[%clk 0:00:37.8]} 20. d4 {[%clk 0:02:03.8]} 20... Bc7 {[%clk 0:00:22.4]} 21.
e5 {[%clk 0:02:03.1]} 21... Bb6 {[%clk 0:00:20.3]} 22. c3 {[%clk 0:02:02.4]}
22... Rc8 {[%clk 0:00:19.1]} 23. b4 {[%clk 0:02:01.3]} 23... Qg5 {[%clk
0:00:17.6]} 24. f4 {[%clk 0:02:00.1]} 24... Qh5 {[%clk 0:00:15.8]} 25. h3 {[%clk
0:01:59.5]} 25... Re8 {[%clk 0:00:07.7]} 26. g4 {[%clk 0:01:58.1]} 26... Qh4
{[%clk 0:00:05.4]} 27. Qd3 {[%clk 0:01:56.2]} 27... f6 {[%clk 0:00:03]} 28. Ng3
{[%clk 0:01:54.1]} 28... fxe5 {[%clk 0:00:02.6]} 29. fxe5 {[%clk 0:01:54.1]} 1-0